Workbook

Sheet Sub proj 2020
A1: PROJEKTOWANA KWOTA SUBWENCJI OGÓLNEJ DLA GMIN NA 2020 r.
A2: (ST3.4750.31.2019)
K3: w złotych
F4: Projektowana subwencja ogólna na 2020 r. | J4: Wpłaty na część równoważącą | K4: Planowane udziały gmin w pod.doch. od osób fiz. na 2020 r. 38,16%
A5: Kod gminy | D5: Typ i nazwa gminy | G5: z tego:
G6: Część oświatowa | H6: Część wyrównawcza | I6: Część równoważąca
A9: WK | B9: PK | C9: GK | D9: GT | E9: GNAZWA | F9: razem | G9: SUB_OSW | H9: WYRÓWNAWCZA pomn o 150%G | I9: SUMA_ROW | J9: WPLATA_G | K9: P_UDZIAL18
A10: 02 | B10: 01 | C10: 01 | D10: 1 | E10: BOLESŁAWIEC | F10: =G10+H10+I10 -> 26809759 | G10: 26809759 | H10: 0 | I10: 0 | J10: 0 | K10: 41657611
A11: 02 | B11: 01 | C11: 02 | D11: 2 | E11: BOLESŁAWIEC | F11: =G11+H11+I11 -> 12646025 | G11: 9789588 | H11: 2856437 | I11: 0 | J11: 0 | K11: 14199124
A12: 02 | B12: 01 | C12: 03 | D12: 2 | E12: GROMADKA | F12: 5670378 | G12: 4176902 | H12: 1493476 | I12: 0 | J12: 0 | K12: 3679652
A13: 02 | B13: 01 | C13: 04 | D13: 3 | E13: NOWOGRODZIEC | F13: 14331068 | G13: 12583542 | H13: 1498936 | I13: 248590 | J13: 0 | K13: 9837429
A14: 02 | B14: 01 | C14: 05 | D14: 2 | E14: OSIECZNICA | F14: 9963935 | G14: 7799508 | H14: 2114673 | I14: 49754 | J14: 0 | K14: 6018066
A15: 02 | B15: 01 | C15: 06 | D15: 2 | E15: WARTA BOLESŁAWIECKA | F15: 9408176 | G15: 8251044 | H15: 1155663 | I15: 1469 | J15: 0 | K15: 6170620
A16: 02 | B16: 02 | C16: 01 | D16: 1 | E16: BIELAWA | F16: 33796304 | G16: 18425952 | H16: 15260351 | I16: 110001 | J16: 0 | K16: 23414030
A17: 02 | B17: 02 | C17: 02 | D17: 1 | E17: DZIERŻONIÓW | F17: 23705856 | G17: 20136861 | H17: 3156530 | I17: 412465 | J17: 0 | K17: 31541522
A18: 02 | B18: 02 | C18: 03 | D18: 3 | E18: PIESZYCE | F18: 8739453 | G18: 4707727 | H18: 3876342 | I18: 155384 | J18: 0 | K18: 7333450
A19: 02 | B19: 02 | C19: 04 | D19: 1 | E19: PIŁAWA GÓRNA | F19: 6213586 | G19: 3040853 | H19: 3172733 | I19: 0 | J19: 0 | K19: 3610152
A20: 02 | B20: 02 | C20: 05 | D20: 2 | E20: DZIERŻONIÓW | F20: 9311651 | G20: 5510047 | H20: 3801604 | I20: 0 | J20: 0 | K20: 6928526
A21: 02 | B21: 02 | C21: 06 | D21: 2 | E21: ŁAGIEWNIKI | F21: 10594204 | G21: 6207123 | H21: 4387081 | I21: 0 | J21: 0 | K21: 5592628
A22: 02 | B22: 02 | C22: 07 | D22: 3 | E22: NIEMCZA | F22: 6605755 | G22: 3249655 | H22: 3346142 | I22: 9958 | J22: 0 | K22: 3342234
A23: 02 | B23: 03 | C23: 01 | D23: 1 | E23: GŁOGÓW | F23: 46628619 | G23: 46472428 | H23: 0 | I23: 156191 | J23: 0 | K23: 84910391
A24: 02 | B24: 03 | C24: 02 | D24: 2 | E24: GŁOGÓW | F24: 5456528 | G24: 4664987 | H24: 791541 | I24: 0 | J24: 0 | K24: 9486757
A25: 02 | B25: 03 | C25: 03 | D25: 2 | E25: JERZMANOWA | F25: 5077206 | G25: 5077206 | H25: 0 | I25: 0 | J25: 5174070 | K25: 8611243
A26: 02 | B26: 03 | C26: 04 | D26: 2 | E26: KOTLA | F26: 5725544 | G26: 4008446 | H26: 1717098 | I26: 0 | J26: 0 | K26: 3848260
A27: 02 | B27: 03 | C27: 05 | D27: 2 | E27: PĘCŁAW | F27: 3478349 | G27: 1921697 | H27: 1556652 | I27: 0 | J27: 0 | K27: 1521925
A28: 02 | B28: 03 | C28: 06 | D28: 2 | E28: ŻUKOWICE | F28: 3912535 | G28: 2928178 | H28: 984357 | I28: 0 | J28: 0 | K28: 2470350
A29: 02 | B29: 04 | C29: 01 | D29: 3 | E29: GÓRA | F29: 22136769 | G29: 14176449 | H29: 7694429 | I29: 265891 | J29: 0 | K29: 13292118
A30: 02 | B30: 04 | C30: 02 | D30: 2 | E30: JEMIELNO | F30: 5247498 | G30: 2544792 | H30: 2597168 | I30: 105538 | J30: 0 | K30: 1261176
A31: 02 | B31: 04 | C31: 03 | D31: 2 | E31: NIECHLÓW | F31: 6892244 | G31: 3538093 | H31: 3338494 | I31: 15657 | J31: 0 | K31: 2518579
A32: 02 | B32: 04 | C32: 04 | D32: 3 | E32: WĄSOSZ | F32: 10204755 | G32: 6148762 | H32: 3899264 | I32: 156729 | J32: 0 | K32: 4710283
A33: 02 | B33: 05 | C33: 01 | D33: 1 | E33: JAWOR | F33: 15430494 | G33: 13022894 | H33: 2407600 | I33: 0 | J33: 0 | K33: 21235822
A34: 02 | B34: 05 | C34: 02 | D34: 3 | E34: BOLKÓW | F34: 14638384 | G34: 6320008 | H34: 8058043 | I34: 260333 | J34: 0 | K34: 5923648
A35: 02 | B35: 05 | C35: 03 | D35: 2 | E35: MĘCINKA | F35: 4973217 | G35: 3769793 | H35: 1203424 | I35: 0 | J35: 0 | K35: 3866839
A36: 02 | B36: 05 | C36: 04 | D36: 2 | E36: MŚCIWOJÓW | F36: 3531941 | G36: 2421341 | H36: 1110600 | I36: 0 | J36: 0 | K36: 3217037
A37: 02 | B37: 05 | C37: 05 | D37: 2 | E37: PASZOWICE | F37: 4526339 | G37: 2520447 | H37: 2005892 | I37: 0 | J37: 0 | K37: 2569977
A38: 02 | B38: 05 | C38: 06 | D38: 2 | E38: WĄDROŻE WIELKIE | F38: 5605088 | G38: 3539234 | H38: 2065854 | I38: 0 | J38: 0 | K38: 3249370
A39: 02 | B39: 06 | C39: 01 | D39: 1 | E39: KARPACZ | F39: 4534054 | G39: 4507368 | H39: 0 | I39: 26686 | J39: 995817 | K39: 5157858
A40: 02 | B40: 06 | C40: 02 | D40: 1 | E40: KOWARY | F40: 9182906 | G40: 6240299 | H40: 2775074 | I40: 167533 | J40: 0 | K40: 8735569
A41: 02 | B41: 06 | C41: 03 | D41: 1 | E41: PIECHOWICE | F41: 2449635 | G41: 2449635 | H41: 0 | I41: 0 | J41: 0 | K41: 6077348
A42: 02 | B42: 06 | C42: 04 | D42: 1 | E42: SZKLARSKA PORĘBA | F42: 3178536 | G42: 2548440 | H42: 630096 | I42: 0 | J42: 0 | K42: 5689092
A43: 02 | B43: 06 | C43: 05 | D43: 2 | E43: JANOWICE WIELKIE | F43: 4877528 | G43: 2558180 | H43: 2291167 | I43: 28181 | J43: 0 | K43: 3273440
A44: 02 | B44: 06 | C44: 06 | D44: 2 | E44: JEŻÓW SUDECKI | F44: 6494229 | G44: 4750879 | H44: 1743350 | I44: 0 | J44: 0 | K44: 9860742
A45: 02 | B45: 06 | C45: 07 | D45: 2 | E45: MYSŁAKOWICE | F45: 9277405 | G45: 7396951 | H45: 1880454 | I45: 0 | J45: 0 | K45: 9066354
A46: 02 | B46: 06 | C46: 08 | D46: 2 | E46: PODGÓRZYN | F46: 6589984 | G46: 6080461 | H46: 509523 | I46: 0 | J46: 0 | K46: 7630103
A47: 02 | B47: 06 | C47: 09 | D47: 2 | E47: STARA KAMIENICA | F47: 5792668 | G47: 4638563 | H47: 1072557 | I47: 81548 | J47: 0 | K47: 3714717
A48: 02 | B48: 07 | C48: 01 | D48: 1 | E48: KAMIENNA GÓRA | F48: 17480295 | G48: 10416107 | H48: 6947076 | I48: 117112 | J48: 0 | K48: 15535781
A49: 02 | B49: 07 | C49: 02 | D49: 2 | E49: KAMIENNA GÓRA | F49: 11907375 | G49: 7309258 | H49: 4580947 | I49: 17170 | J49: 0 | K49: 7584033
A50: 02 | B50: 07 | C50: 03 | D50: 3 | E50: LUBAWKA | F50: 13790169 | G50: 6919846 | H50: 6645175 | I50: 225148 | J50: 0 | K50: 7456647
A51: 02 | B51: 07 | C51: 04 | D51: 2 | E51: MARCISZÓW | F51: 7287534 | G51: 3206630 | H51: 4012893 | I51: 68011 | J51: 0 | K51: 2748568
A52: 02 | B52: 08 | C52: 01 | D52: 1 | E52: DUSZNIKI-ZDRÓJ | F52: 4119173 | G52: 4073300 | H52: 0 | I52: 45873 | J52: 0 | K52: 4051221
A53: 02 | B53: 08 | C53: 02 | D53: 1 | E53: KŁODZKO | F53: 22022995 | G53: 17271371 | H53: 4704185 | I53: 47439 | J53: 0 | K53: 24543126
A54: 02 | B54: 08 | C54: 03 | D54: 1 | E54: KUDOWA-ZDRÓJ | F54: 10293899 | G54: 7336225 | H54: 2943141 | I54: 14533 | J54: 0 | K54: 6627327
A55: 02 | B55: 08 | C55: 04 | D55: 1 | E55: NOWA RUDA | F55: 18072728 | G55: 9631913 | H55: 8286428 | I55: 154387 | J55: 0 | K55: 18034462
A56: 02 | B56: 08 | C56: 05 | D56: 1 | E56: POLANICA-ZDRÓJ | F56: 3566366 | G56: 3561725 | H56: 0 | I56: 4641 | J56: 0 | K56: 6684872
A57: 02 | B57: 08 | C57: 06 | D57: 3 | E57: BYSTRZYCA KŁODZKA | F57: 27177100 | G57: 15580045 | H57: 11041014 | I57: 556041 | J57: 0 | K57: 12991606
A58: 02 | B58: 08 | C58: 07 | D58: 2 | E58: KŁODZKO | F58: 21780569 | G58: 12813240 | H58: 8961478 | I58: 5851 | J58: 0 | K58: 12084539
A59: 02 | B59: 08 | C59: 08 | D59: 3 | E59: LĄDEK-ZDRÓJ | F59: 8191520 | G59: 3886873 | H59: 4159924 | I59: 144723 | J59: 0 | K59: 5760866
A60: 02 | B60: 08 | C60: 09 | D60: 2 | E60: LEWIN KŁODZKI | F60: 2963477 | G60: 1637542 | H60: 1255726 | I60: 70209 | J60: 0 | K60: 1026576
A61: 02 | B61: 08 | C61: 10 | D61: 3 | E61: MIĘDZYLESIE | F61: 11473778 | G61: 5575746 | H61: 5800092 | I61: 97940 | J61: 0 | K61: 4180434
A62: 02 | B62: 08 | C62: 11 | D62: 2 | E62: NOWA RUDA | F62: 18049957 | G62: 10923386 | H62: 7032033 | I62: 94538 | J62: 0 | K62: 7940480
A63: 02 | B63: 08 | C63: 12 | D63: 3 | E63: RADKÓW | F63: 10636828 | G63: 6823865 | H63: 3493016 | I63: 319947 | J63: 0 | K63: 5948195
A64: 02 | B64: 08 | C64: 13 | D64: 3 | E64: STRONIE ŚLĄSKIE | F64: 6084211 | G64: 4175805 | H64: 1785506 | I64: 122900 | J64: 0 | K64: 4680085
A65: 02 | B65: 08 | C65: 14 | D65: 3 | E65: SZCZYTNA | F65: 8511192 | G65: 3467331 | H65: 5043861 | I65: 0 | J65: 0 | K65: 5043970
A66: 02 | B66: 09 | C66: 01 | D66: 1 | E66: CHOJNÓW | F66: 12629169 | G66: 8450895 | H66: 4164177 | I66: 14097 | J66: 0 | K66: 12291635
A67: 02 | B67: 09 | C67: 02 | D67: 2 | E67: CHOJNÓW | F67: 10255937 | G67: 6574998 | H67: 3679205 | I67: 1734 | J67: 0 | K67: 8503507
A68: 02 | B68: 09 | C68: 03 | D68: 2 | E68: KROTOSZYCE | F68: 2986629 | G68: 2323587 | H68: 663042 | I68: 0 | J68: 0 | K68: 3295591
A69: 02 | B69: 09 | C69: 04 | D69: 2 | E69: KUNICE | F69: 6168894 | G69: 5264809 | H69: 904085 | I69: 0 | J69: 0 | K69: 11066607
A70: 02 | B70: 09 | C70: 05 | D70: 2 | E70: LEGNICKIE POLE | F70: 3527170 | G70: 3527170 | H70: 0 | I70: 0 | J70: 422802 | K70: 4912843
A71: 02 | B71: 09 | C71: 06 | D71: 2 | E71: MIŁKOWICE | F71: 6487993 | G71: 4454245 | H71: 2033748 | I71: 0 | J71: 0 | K71: 6399356
A72: 02 | B72: 09 | C72: 07 | D72: 3 | E72: PROCHOWICE | F72: 6818798 | G72: 5805745 | H72: 1011413 | I72: 1640 | J72: 0 | K72: 5998251
A73: 02 | B73: 09 | C73: 08 | D73: 2 | E73: RUJA | F73: 3226846 | G73: 1641972 | H73: 1584874 | I73: 0 | J73: 0 | K73: 1692853
A74: 02 | B74: 10 | C74: 01 | D74: 1 | E74: LUBAŃ | F74: 15069243 | G74: 12188100 | H74: 2881143 | I74: 0 | J74: 0 | K74: 20303038
A75: 02 | B75: 10 | C75: 02 | D75: 1 | E75: ŚWIERADÓW-ZDRÓJ | F75: =G75+H75+I75 -> 4248672 | G75: 4182037 | H75: 0 | I75: 66635 | J75: 0 | K75: 3219752
A76: 02 | B76: 10 | C76: 03 | D76: 3 | E76: LEŚNA | F76: 13916424 | G76: 7371421 | H76: 6216802 | I76: 328201 | J76: 0 | K76: 5633485
A77: 02 | B77: 10 | C77: 04 | D77: 2 | E77: LUBAŃ | F77: 8726986 | G77: 5257349 | H77: 3469637 | I77: 0 | J77: 0 | K77: 5002214
A78: 02 | B78: 10 | C78: 05 | D78: 3 | E78: OLSZYNA | F78: 7513133 | G78: 4845745 | H78: 2620008 | I78: 47380 | J78: 0 | K78: 4390965
A79: 02 | B79: 10 | C79: 06 | D79: 2 | E79: PLATERÓWKA | F79: 1479770 | G79: 1087728 | H79: 392042 | I79: 0 | J79: 0 | K79: 1233276
A80: 02 | B80: 10 | C80: 07 | D80: 2 | E80: SIEKIERCZYN | F80: 5564013 | G80: 3511456 | H80: 2052557 | I80: 0 | J80: 0 | K80: 4176545
A81: 02 | B81: 11 | C81: 01 | D81: 1 | E81: LUBIN | F81: 53918894 | G81: 53918894 | H81: 0 | I81: 0 | J81: 0 | K81: 109990979
A82: 02 | B82: 11 | C82: 02 | D82: 2 | E82: LUBIN | F82: 9192706 | G82: 9192706 | H82: 0 | I82: 0 | J82: 3001525 | K82: 30646568
A83: 02 | B83: 11 | C83: 03 | D83: 2 | E83: RUDNA | F83: 7598678 | G83: 7583419 | H83: 0 | I83: 15259 | J83: 2429426 | K83: 8960733
A84: 02 | B84: 11 | C84: 04 | D84: 3 | E84: ŚCINAWA | F84: 10109893 | G84: 6183307 | H84: 3901965 | I84: 24621 | J84: 0 | K84: 9171222
A85: 02 | B85: 12 | C85: 01 | D85: 3 | E85: GRYFÓW ŚLĄSKI | F85: 9402938 | G85: 4900041 | H85: 4393050 | I85: 109847 | J85: 0 | K85: 6951049
A86: 02 | B86: 12 | C86: 02 | D86: 3 | E86: LUBOMIERZ | F86: 13649767 | G86: 7649681 | H86: 5673938 | I86: 326148 | J86: 0 | K86: 2671338
A87: 02 | B87: 12 | C87: 03 | D87: 3 | E87: LWÓWEK ŚLĄSKI | F87: 16583497 | G87: 9828510 | H87: 6746706 | I87: 8281 | J87: 0 | K87: 13149773
A88: 02 | B88: 12 | C88: 04 | D88: 3 | E88: MIRSK | F88: 13226029 | G88: 6418344 | H88: 6509686 | I88: 297999 | J88: 0 | K88: 4773141
A89: 02 | B89: 12 | C89: 05 | D89: 3 | E89: WLEŃ | F89: 6113074 | G89: 2887429 | H89: 3117876 | I89: 107769 | J89: 0 | K89: 2281476
A90: 02 | B90: 13 | C90: 01 | D90: 2 | E90: CIESZKÓW | F90: 7250500 | G90: 4041257 | H90: 3202950 | I90: 6293 | J90: 0 | K90: 3444614
A91: 02 | B91: 13 | C91: 02 | D91: 2 | E91: KROŚNICE | F91: 8703743 | G91: 6999011 | H91: 1704732 | I91: 0 | J91: 0 | K91: 6551546
A92: 02 | B92: 13 | C92: 03 | D92: 3 | E92: MILICZ | F92: 29870132 | G92: 21615034 | H92: 8255098 | I92: 0 | J92: 0 | K92: 21280577
A93: 02 | B93: 14 | C93: 01 | D93: 1 | E93: OLEŚNICA | F93: 25431019 | G93: 25336260 | H93: 90290 | I93: 4469 | J93: 0 | K93: 41774960
A94: 02 | B94: 14 | C94: 02 | D94: 3 | E94: BIERUTÓW | F94: 13236077 | G94: 7468436 | H94: 5695328 | I94: 72313 | J94: 0 | K94: 7448184
A95: 02 | B95: 14 | C95: 03 | D95: 2 | E95: DOBROSZYCE | F95: 8766727 | G95: 6634632 | H95: 2132095 | I95: 0 | J95: 0 | K95: 6276457
A96: 02 | B96: 14 | C96: 04 | D96: 2 | E96: DZIADOWA KŁODA | F96: 8779812 | G96: 4853027 | H96: 3870196 | I96: 56589 | J96: 0 | K96: 2376180
A97: 02 | B97: 14 | C97: 05 | D97: 3 | E97: MIĘDZYBÓRZ | F97: 6939416 | G97: 5245351 | H97: 1596586 | I97: 97479 | J97: 0 | K97: 3159040
A98: 02 | B98: 14 | C98: 06 | D98: 2 | E98: OLEŚNICA | F98: 11839809 | G98: 9380955 | H98: 2458854 | I98: 0 | J98: 0 | K98: 14570808
A99: 02 | B99: 14 | C99: 07 | D99: 3 | E99: SYCÓW | F99: 14249746 | G99: 11398635 | H99: 2764527 | I99: 86584 | J99: 0 | K99: 14977507
A100: 02 | B100: 14 | C100: 08 | D100: 3 | E100: TWARDOGÓRA | F100: 9934345 | G100: 8092088 | H100: 1592289 | I100: 249968 | J100: 0 | K100: 14897619
A101: 02 | B101: 15 | C101: 01 | D101: 1 | E101: OŁAWA | F101: 23024440 | G101: 22905244 | H101: 0 | I101: 119196 | J101: 0 | K101: 42733564
A102: 02 | B102: 15 | C102: 02 | D102: 2 | E102: DOMANIÓW | F102: 8443289 | G102: 6235858 | H102: 2207431 | I102: 0 | J102: 0 | K102: 3914948
A103: 02 | B103: 15 | C103: 03 | D103: 3 | E103: JELCZ-LASKOWICE | F103: 18828763 | G103: 18731660 | H103: 0 | I103: 97103 | J103: 0 | K103: 28422836
A104: 02 | B104: 15 | C104: 04 | D104: 2 | E104: OŁAWA | F104: 15632667 | G104: 13243469 | H104: 2389198 | I104: 0 | J104: 0 | K104: 19143199
A105: 02 | B105: 16 | C105: 01 | D105: 3 | E105: CHOCIANÓW | F105: 10646777 | G105: 8084766 | H105: 2286982 | I105: 275029 | J105: 0 | K105: 14551530
A106: 02 | B106: 16 | C106: 02 | D106: 2 | E106: GAWORZYCE | F106: 5229767 | G106: 3440258 | H106: 1789509 | I106: 0 | J106: 0 | K106: 3404106
A107: 02 | B107: 16 | C107: 03 | D107: 2 | E107: GRĘBOCICE | F107: 5275246 | G107: 5275246 | H107: 0 | I107: 0 | J107: 2781864 | K107: 4767375
A108: 02 | B108: 16 | C108: 04 | D108: 3 | E108: POLKOWICE | F108: 20708101 | G108: 20470802 | H108: 0 | I108: 237299 | J108: 23670647 | K108: 41267623
A109: 02 | B109: 16 | C109: 05 | D109: 3 | E109: PRZEMKÓW | F109: 10062614 | G109: 6425948 | H109: 3407415 | I109: 229251 | J109: 0 | K109: 8069948
A110: 02 | B110: 16 | C110: 06 | D110: 2 | E110: RADWANICE | F110: 4953331 | G110: 4953331 | H110: 0 | I110: 0 | J110: 371254 | K110: 5775952
A111: 02 | B111: 17 | C111: 01 | D111: 2 | E111: BORÓW | F111: 6549711 | G111: 4208852 | H111: 2340859 | I111: 0 | J111: 0 | K111: 4123742
A112: 02 | B112: 17 | C112: 02 | D112: 2 | E112: KONDRATOWICE | F112: 4669859 | G112: 3226419 | H112: 1443440 | I112: 0 | J112: 0 | K112: 2541392
A113: 02 | B113: 17 | C113: 03 | D113: 2 | E113: PRZEWORNO | F113: 6716034 | G113: 2868996 | H113: 3847038 | I113: 0 | J113: 0 | K113: 3162610
A114: 02 | B114: 17 | C114: 04 | D114: 3 | E114: STRZELIN | F114: 18781288 | G114: 18282402 | H114: 0 | I114: 498886 | J114: 0 | K114: 22338866
A115: 02 | B115: 17 | C115: 05 | D115: 3 | E115: WIĄZÓW | F115: 10624197 | G115: 6523168 | H115: 4101029 | I115: 0 | J115: 0 | K115: 4681394
A116: 02 | B116: 18 | C116: 01 | D116: 2 | E116: KOSTOMŁOTY | F116: 8895160 | G116: 5882816 | H116: 3012344 | I116: 0 | J116: 0 | K116: 5635455
A117: 02 | B117: 18 | C117: 02 | D117: 2 | E117: MALCZYCE | F117: 6694695 | G117: 4424047 | H117: 2270648 | I117: 0 | J117: 0 | K117: 5018933
A118: 02 | B118: 18 | C118: 03 | D118: 2 | E118: MIĘKINIA | F118: 16571544 | G118: 15138889 | H118: 1432655 | I118: 0 | J118: 0 | K118: 23911155
A119: 02 | B119: 18 | C119: 04 | D119: 3 | E119: ŚRODA ŚLĄSKA | F119: 17215712 | G119: 15550812 | H119: 1664900 | I119: 0 | J119: 0 | K119: 20822255
A120: 02 | B120: 18 | C120: 05 | D120: 2 | E120: UDANIN | F120: 6315393 | G120: 3433783 | H120: 2881610 | I120: 0 | J120: 0 | K120: 3130136
A121: 02 | B121: 19 | C121: 01 | D121: 1 | E121: ŚWIDNICA | F121: 40102117 | G121: 40102117 | H121: 0 | I121: 0 | J121: 0 | K121: 68851057
A122: 02 | B122: 19 | C122: 02 | D122: 1 | E122: ŚWIEBODZICE | F122: 15374944 | G122: 15374944 | H122: 0 | I122: 0 | J122: 0 | K122: 27108000
A123: 02 | B123: 19 | C123: 03 | D123: 2 | E123: DOBROMIERZ | F123: 6667138 | G123: 4488631 | H123: 2155835 | I123: 22672 | J123: 0 | K123: 3134009
A124: 02 | B124: 19 | C124: 04 | D124: 3 | E124: JAWORZYNA ŚLĄSKA | F124: 9458690 | G124: 6187992 | H124: 3270698 | I124: 0 | J124: 0 | K124: 8378334
A125: 02 | B125: 19 | C125: 05 | D125: 2 | E125: MARCINOWICE | F125: 7161171 | G125: 4766085 | H125: 2395086 | I125: 0 | J125: 0 | K125: 5020861
A126: 02 | B126: 19 | C126: 06 | D126: 3 | E126: STRZEGOM | F126: 18466726 | G126: 18466726 | H126: 0 | I126: 0 | J126: 0 | K126: 23156843
A127: 02 | B127: 19 | C127: 07 | D127: 2 | E127: ŚWIDNICA | F127: 16983882 | G127: 15112301 | H127: 1871581 | I127: 0 | J127: 0 | K127: 19322593
A128: 02 | B128: 19 | C128: 08 | D128: 3 | E128: ŻARÓW | F128: 9125810 | G128: 9118344 | H128: 0 | I128: 7466 | J128: 0 | K128: 10534385
A129: 02 | B129: 20 | C129: 01 | D129: 3 | E129: OBORNIKI ŚLĄSKIE | F129: 14287649 | G129: 14260230 | H129: 6604 | I129: 20815 | J129: 0 | K129: 25308013
A130: 02 | B130: 20 | C130: 02 | D130: 3 | E130: PRUSICE | F130: 12285875 | G130: 7100444 | H130: 5185431 | I130: 0 | J130: 0 | K130: 6347369
A131: 02 | B131: 20 | C131: 03 | D131: 3 | E131: TRZEBNICA | F131: 23923190 | G131: 20842930 | H131: 2910403 | I131: 169857 | J131: 0 | K131: 29420731
A132: 02 | B132: 20 | C132: 04 | D132: 2 | E132: WISZNIA MAŁA | F132: 9267837 | G132: 8635906 | H132: 631931 | I132: 0 | J132: 0 | K132: 16372234
A133: 02 | B133: 20 | C133: 05 | D133: 2 | E133: ZAWONIA | F133: 6040979 | G133: 4877924 | H133: 1163055 | I133: 0 | J133: 0 | K133: 9724508
A134: 02 | B134: 20 | C134: 06 | D134: 3 | E134: ŻMIGRÓD | F134: 16284254 | G134: 9699462 | H134: 6387679 | I134: 197113 | J134: 0 | K134: 11695472
A135: 02 | B135: 21 | C135: 01 | D135: 1 | E135: BOGUSZÓW-GORCE | F135: 16788144 | G135: 7007209 | H135: 9557924 | I135: 223011 | J135: 0 | K135: 11703792
A136: 02 | B136: 21 | C136: 02 | D136: 1 | E136: JEDLINA-ZDRÓJ | F136: 5072723 | G136: 3486608 | H136: 1582283 | I136: 3832 | J136: 0 | K136: 3689670
A137: 02 | B137: 21 | C137: 03 | D137: 1 | E137: SZCZAWNO-ZDRÓJ | F137: 2173421 | G137: 2173421 | H137: 0 | I137: 0 | J137: 0 | K137: 8786254
A138: 02 | B138: 21 | C138: 04 | D138: 2 | E138: CZARNY BÓR | F138: 5531696 | G138: 4831834 | H138: 653951 | I138: 45911 | J138: 0 | K138: 4599202
A139: 02 | B139: 21 | C139: 05 | D139: 3 | E139: GŁUSZYCA | F139: =G139+H139+I139 -> 10235871 | G139: 4483445 | H139: 5603350 | I139: 149076 | J139: 0 | K139: 5762240
A140: 02 | B140: 21 | C140: 06 | D140: 3 | E140: MIEROSZÓW | F140: 7748089 | G140: 5060523 | H140: 2577161 | I140: 110405 | J140: 0 | K140: 4967011
A141: 02 | B141: 21 | C141: 07 | D141: 2 | E141: STARE BOGACZOWICE | F141: 5800985 | G141: 2945341 | H141: 2855644 | I141: 0 | J141: 0 | K141: 3861153
A142: 02 | B142: 21 | C142: 08 | D142: 2 | E142: WALIM | F142: 5608213 | G142: 3956495 | H142: 1566738 | I142: 84980 | J142: 0 | K142: 5058204
A143: 02 | B143: 22 | C143: 01 | D143: 3 | E143: BRZEG DOLNY | F143: 10403094 | G143: 10319858 | H143: 0 | I143: 83236 | J143: 0 | K143: 17788640
A144: 02 | B144: 22 | C144: 02 | D144: 2 | E144: WIŃSKO | F144: 12712136 | G144: 6151541 | H144: 6522767 | I144: 37828 | J144: 0 | K144: 5832982
A145: 02 | B145: 22 | C145: 03 | D145: 3 | E145: WOŁÓW | F145: 22839725 | G145: 12931863 | H145: 9752677 | I145: 155185 | J145: 0 | K145: 20138920
A146: 02 | B146: 23 | C146: 01 | D146: 2 | E146: CZERNICA | F146: 18795200 | G146: 18795200 | H146: 0 | I146: 0 | J146: 0 | K146: 29001852
A147: 02 | B147: 23 | C147: 02 | D147: 2 | E147: DŁUGOŁĘKA | F147: 37347199 | G147: 37347199 | H147: 0 | I147: 0 | J147: 0 | K147: 60633647
A148: 02 | B148: 23 | C148: 03 | D148: 2 | E148: JORDANÓW ŚLĄSKI | F148: 3919955 | G148: 2609722 | H148: 1310233 | I148: 0 | J148: 0 | K148: 2631218
A149: 02 | B149: 23 | C149: 04 | D149: 3 | E149: KĄTY WROCŁAWSKIE | F149: 23193320 | G149: 23193320 | H149: 0 | I149: 0 | J149: 1436602 | K149: 40889728
A150: 02 | B150: 23 | C150: 05 | D150: 2 | E150: KOBIERZYCE | F150: 25439575 | G150: 25439575 | H150: 0 | I150: 0 | J150: 22577841 | K150: 61753254
A151: 02 | B151: 23 | C151: 06 | D151: 2 | E151: MIETKÓW | F151: 3853914 | G151: 3060361 | H151: 793553 | I151: 0 | J151: 0 | K151: 2819189
A152: 02 | B152: 23 | C152: 07 | D152: 3 | E152: SOBÓTKA | F152: 10920695 | G152: 9769684 | H152: 996702 | I152: 154309 | J152: 0 | K152: 13555294
A153: 02 | B153: 23 | C153: 08 | D153: 3 | E153: SIECHNICE | F153: 23226170 | G153: 23226170 | H153: 0 | I153: 0 | J153: 2390741 | K153: 44312147
A154: 02 | B154: 23 | C154: 09 | D154: 2 | E154: ŻÓRAWINA | F154: 10616010 | G154: 9660054 | H154: 955956 | I154: 0 | J154: 0 | K154: 17810584
A155: 02 | B155: 24 | C155: 01 | D155: 3 | E155: BARDO | F155: 5533634 | G155: 3867812 | H155: 1635612 | I155: 30210 | J155: 0 | K155: 3980974
A156: 02 | B156: 24 | C156: 02 | D156: 2 | E156: CIEPŁOWODY | F156: 3180118 | G156: 2495508 | H156: 684610 | I156: 0 | J156: 0 | K156: 2252594
A157: 02 | B157: 24 | C157: 03 | D157: 2 | E157: KAMIENIEC ZĄBKOWICKI | F157: 7134351 | G157: 5330878 | H157: 1803473 | I157: 0 | J157: 0 | K157: 7714180
A158: 02 | B158: 24 | C158: 04 | D158: 2 | E158: STOSZOWICE | F158: 6846548 | G158: 3501616 | H158: 3344932 | I158: 0 | J158: 0 | K158: 3671099
A159: 02 | B159: 24 | C159: 05 | D159: 3 | E159: ZĄBKOWICE ŚLĄSKIE | F159: 15724147 | G159: 14051765 | H159: 1533193 | I159: 139189 | J159: 0 | K159: 20484916
A160: 02 | B160: 24 | C160: 06 | D160: 3 | E160: ZIĘBICE | F160: 20034531 | G160: 9734241 | H160: 10272778 | I160: 27512 | J160: 0 | K160: 10551010
A161: 02 | B161: 24 | C161: 07 | D161: 3 | E161: ZŁOTY STOK | F161: 6510267 | G161: 3167547 | H161: 3266563 | I161: 76157 | J161: 0 | K161: 3079184
A162: 02 | B162: 25 | C162: 01 | D162: 1 | E162: ZAWIDÓW | F162: 4495347 | G162: 3400324 | H162: 1095023 | I162: 0 | J162: 0 | K162: 4267901
A163: 02 | B163: 25 | C163: 02 | D163: 1 | E163: ZGORZELEC | F163: 20130518 | G163: 20130518 | H163: 0 | I163: 0 | J163: 0 | K163: 36190802
A164: 02 | B164: 25 | C164: 03 | D164: 3 | E164: BOGATYNIA | F164: 17104402 | G164: 17027113 | H164: 0 | I164: 77289 | J164: 9466082 | K164: 27605390
A165: 02 | B165: 25 | C165: 04 | D165: 3 | E165: PIEŃSK | F165: 7970910 | G165: 4533729 | H165: 3428251 | I165: 8930 | J165: 0 | K165: 6442496
A166: 02 | B166: 25 | C166: 05 | D166: 2 | E166: SULIKÓW | F166: 4966290 | G166: 4002988 | H166: 963302 | I166: 0 | J166: 0 | K166: 4940430
A167: 02 | B167: 25 | C167: 06 | D167: 3 | E167: WĘGLINIEC | F167: 10953915 | G167: 7029777 | H167: 3891986 | I167: 32152 | J167: 0 | K167: 5805876
A168: 02 | B168: 25 | C168: 07 | D168: 2 | E168: ZGORZELEC | F168: 6699532 | G168: 5299032 | H168: 1400500 | I168: 0 | J168: 0 | K168: 6924226
A169: 02 | B169: 26 | C169: 01 | D169: 1 | E169: WOJCIESZÓW | F169: 4430894 | G169: 2924854 | H169: 1506040 | I169: 0 | J169: 0 | K169: 2433458
A170: 02 | B170: 26 | C170: 02 | D170: 1 | E170: ZŁOTORYJA | F170: 10391745 | G170: 8155491 | H170: 2047611 | I170: 188643 | J170: 0 | K170: 16260914
A171: 02 | B171: 26 | C171: 03 | D171: 2 | E171: PIELGRZYMKA | F171: 6813068 | G171: 3811698 | H171: 3001370 | I171: 0 | J171: 0 | K171: 2881970
A172: 02 | B172: 26 | C172: 04 | D172: 3 | E172: ŚWIERZAWA | F172: 10217258 | G172: 5892434 | H172: 4188916 | I172: 135908 | J172: 0 | K172: 4072158
A173: 02 | B173: 26 | C173: 05 | D173: 2 | E173: ZAGRODNO | F173: 4365907 | G173: 3224397 | H173: 1141510 | I173: 0 | J173: 0 | K173: 3379775
A174: 02 | B174: 26 | C174: 06 | D174: 2 | E174: ZŁOTORYJA | F174: 7365212 | G174: 5545088 | H174: 1749073 | I174: 71051 | J174: 0 | K174: 5646715
A175: 02 | B175: 61 | C175: 01 | D175: 1 | E175: Jelenia Góra | F175: 50397717 | G175: 50397717 | H175: 0 | I175: 0 | J175: 0 | K175: 84241944
A176: 02 | B176: 62 | C176: 01 | D176: 1 | E176: Legnica | F176: 69095083 | G176: 68557420 | H176: 0 | I176: 537663 | J176: 0 | K176: 114063093
A177: 02 | B177: 64 | C177: 01 | D177: 1 | E177: Wrocław | F177: 378288982 | G177: 378288982 | H177: 0 | I177: 0 | J177: 0 | K177: 1184849074
A178: 02 | B178: 65 | C178: 01 | D178: 1 | E178: Wałbrzych | F178: 74063496 | G178: 56584628 | H178: 16177281 | I178: 1301587 | J178: 0 | K178: 100390454
A179: 02 Suma | F179: 2456673107 | G179: =SUBTOTAL(9,G10:G178) -> 1997404356 | H179: =SUBTOTAL(9,H10:H178) -> 447438323 | I179: =SUBTOTAL(9,I10:I178) -> 11830428 | J179: =SUBTOTAL(9,J10:J178) -> 74718671 | K179: =SUBTOTAL(9,K10:K178) -> 3531137561
A180: 04 | B180: 01 | C180: 01 | D180: 1 | E180: ALEKSANDRÓW KUJAWSKI | F180: 15120381 | G180: 9332383 | H180: 5686083 | I180: 101915 | J180: 0 | K180: 8138985
A181: 04 | B181: 01 | C181: 02 | D181: 1 | E181: CIECHOCINEK | F181: 5066345 | G181: 5034663 | H181: 0 | I181: 31682 | J181: 0 | K181: 10913117
A182: 04 | B182: 01 | C182: 03 | D182: 1 | E182: NIESZAWA | F182: 1287451 | G182: 1258679 | H182: 20210 | I182: 8562 | J182: 0 | K182: 1887438
A183: 04 | B183: 01 | C183: 04 | D183: 2 | E183: ALEKSANDRÓW KUJAWSKI | F183: 16396745 | G183: 8446913 | H183: 7833851 | I183: 115981 | J183: 0 | K183: 8312757
A184: 04 | B184: 01 | C184: 05 | D184: 2 | E184: BĄDKOWO | F184: 6230357 | G184: 3906337 | H184: 2314908 | I184: 9112 | J184: 0 | K184: 2442688
A185: 04 | B185: 01 | C185: 06 | D185: 2 | E185: KONECK | F185: 4743590 | G185: 2396516 | H185: 2308447 | I185: 38627 | J185: 0 | K185: 1782423
A186: 04 | B186: 01 | C186: 07 | D186: 2 | E186: RACIĄŻEK | F186: 4666340 | G186: 2558210 | H186: 2060325 | I186: 47805 | J186: 0 | K186: 1824284
A187: 04 | B187: 01 | C187: 08 | D187: 2 | E187: WAGANIEC | F187: 7119933 | G187: 3939838 | H187: 2969443 | I187: 210652 | J187: 0 | K187: 2200150
A188: 04 | B188: 01 | C188: 09 | D188: 2 | E188: ZAKRZEWO | F188: 4582723 | G188: 3524301 | H188: 927757 | I188: 130665 | J188: 0 | K188: 1543685
A189: 04 | B189: 02 | C189: 01 | D189: 1 | E189: BRODNICA | F189: 29030619 | G189: 28984868 | H189: 0 | I189: 45751 | J189: 0 | K189: 30148040
A190: 04 | B190: 02 | C190: 02 | D190: 2 | E190: BOBROWO | F190: 11664252 | G190: 6627456 | H190: 4852126 | I190: 184670 | J190: 0 | K190: 2653758
A191: 04 | B191: 02 | C191: 03 | D191: 2 | E191: BRODNICA | F191: 8735797 | G191: 5824174 | H191: 2893842 | I191: 17781 | J191: 0 | K191: 7896721
A192: 04 | B192: 02 | C192: 04 | D192: 2 | E192: BRZOZIE | F192: 6810488 | G192: 3736120 | H192: 3042649 | I192: 31719 | J192: 0 | K192: 2434210
A193: 04 | B193: 02 | C193: 05 | D193: 3 | E193: GÓRZNO | F193: 7743763 | G193: 5722318 | H193: 2021445 | I193: 0 | J193: 0 | K193: 2550077
A194: 04 | B194: 02 | C194: 06 | D194: 2 | E194: BARTNICZKA | F194: 7182085 | G194: 4068461 | H194: 3046321 | I194: 67303 | J194: 0 | K194: 2901748
A195: 04 | B195: 02 | C195: 07 | D195: 3 | E195: JABŁONOWO POMORSKIE | F195: 13208580 | G195: 8204277 | H195: 4548120 | I195: 456183 | J195: 0 | K195: 5114193
A196: 04 | B196: 02 | C196: 08 | D196: 2 | E196: OSIEK | F196: 6439883 | G196: 3762988 | H196: 2632392 | I196: 44503 | J196: 0 | K196: 2071895
A197: 04 | B197: 02 | C197: 09 | D197: 2 | E197: ŚWIEDZIEBNIA | F197: 10597437 | G197: 4661354 | H197: 5686265 | I197: 249818 | J197: 0 | K197: 2656464
A198: 04 | B198: 02 | C198: 10 | D198: 2 | E198: ZBICZNO | F198: 7367815 | G198: 4419475 | H198: 2948340 | I198: 0 | J198: 0 | K198: 3695816
A199: 04 | B199: 03 | C199: 01 | D199: 2 | E199: BIAŁE BŁOTA | F199: 24954201 | G199: 24785531 | H199: 0 | I199: 168670 | J199: 0 | K199: 37559895
A200: 04 | B200: 03 | C200: 02 | D200: 2 | E200: DĄBROWA CHEŁMIŃSKA | F200: 11563731 | G200: 8039919 | H200: 3523812 | I200: 0 | J200: 0 | K200: 7453678
A201: 04 | B201: 03 | C201: 03 | D201: 2 | E201: DOBRCZ | F201: 15284753 | G201: 11617757 | H201: 3662795 | I201: 4201 | J201: 0 | K201: 11577646
A202: 04 | B202: 03 | C202: 04 | D202: 3 | E202: KORONOWO | F202: 29113534 | G202: 17844510 | H202: 10552279 | I202: 716745 | J202: 0 | K202: 18465952
... 2302 more rows
